Cogmind - Beta 16.1 @@@ ROGUE MODE // 2026.04.12 @ 00:15:56 Player: Zaros426 Result: Destroyed by Alpha 7 with Multirail Performance ------------- Evolutions (8) 4000 Regions Visited (26) 5200 Robots Destroyed (265) 1325 Value Destroyed (10164) 10164 Prototype IDs (247) 4940 Alien Tech Used (10) 2000 Bonus (22409) 22409 TOTAL SCORE: 50038 Bonus ------- High Alert Combat Kills 685 Follower Combat Kills 2808 Forged Quantum Companion 2000 Registered with UFD 300 Met Optimus in HQ 500 Met Data Miner 300 Used Data Conduit 3000 Met Zhirov 300 Built Enhanced Grunts 300 A7 Reached Mainframe 300 Met R17 at Cetus 500 Found Hidden Lab 3000 Decrypted A0 Command 3000 Used Core Reset Matrix 3000 Met R17 at Research 2000 Pursued by Intercept 1000 Friendly Fire -584 Cogmind --------- Core Integrity 0/1700 Matter 295/300 Energy 98/100 System Corruption 7% Temperature Cool (0) Movement Core (50) Location -2/Section 7 Parts ------- > --- POWER (3) -------- (None) > --- PROPULSION (8) --- (None) > --- UTILITY (12) ----- Advanced Target Analyzer Experimental Core Analyzer Experimental Core Analyzer Improved Armor Integrity Analyzer Graphene Brace Advanced Corruption Screen > --- WEAPON (3) ------- Superquantum Companion > --- INVENTORY (5) ---- Seismic Detector Quantum Capacitor Advanced Variable Charge Gun Improved Plasma Cutter Peak State ------------ > --- POWER ------------ Light Quantum Reactor Light Quantum Reactor > --- PROPULSION ------- Antigrav System Antigrav System Improved Antigrav System Cooled Antigrav System Cooled Antigrav System Cooled Antigrav System Combat Linear Gravjet > --- UTILITY ---------- High-capacity Storage Unit Spectral Analyzer Advanced Melee Analysis Suite Advanced Melee Analysis Suite Experimental Core Analyzer Advanced Reaction Control System Centrium Medium Armor Plating Experimental Powered Armor Graphene Brace Deep Network Scanner Experimental System Shield Improved Corruption Screen > --- WEAPON ----------- Superquantum Companion Plasma Lance Enhanced Force Lance > --- INVENTORY -------- Energy Well Advanced Weight Redist. System Improved Sensor Array Long-range Terrain Scanner Seismic Detector Quantum Capacitor Advanced Transmission Jammer Advanced ECM Suite Improved Phase Shifter Phase Redirector Improved Dynamic Insulation System Improved Trap Extractor Improved Lightning Gun Cooled Plasma Rifle Advanced Variable Charge Gun Fusion Bomb Launcher Improved Plasma Cutter [Rating: 200] Favorites ----------- Power Improved Ion Engine Engine Improved Ion Engine Power Core Micro Fission Core Reactor Quantum Reactor Propulsion Flexi-carbon Leg Treads Light Treads Leg Flexi-carbon Leg Wheel Wheel Hover Unit Antigrav System Flight Unit Nuclear Pulse Thruster Utility Advanced Melee Analysis Suite Device Seismic Detector Storage High-capacity Storage Unit Processor Advanced Melee Analysis Suite Hackware Improved Hacking Suite Protection Makeshift Light Armor Plating Artifact Phase Redirector Weapon Companion Sword Energy Gun EM Shotgun Energy Cannon Subdweller Beam Cannon Ballistic Gun Subdweller Machine Gun Ballistic Cannon Magnetic Acceleration Cannon Launcher Missile Launcher Special Weapon Advanced Remote Datajack Impact Weapon Makeshift Hammer Slashing Weapon Companion Sword Piercing Weapon Enhanced Force Lance Special Melee Weapon Improved Datajack Build | -11 -10 -10 -10 -8 -8 -6 -6 -6 -6 -5 -5 -5 -5 -5 -5 -4 -4 -4 -4 -3 -3 -3 -3 -2 -2 -2 ------- Run | Yrd Mat Min Sub Rec Scr Fac Low Low Dat Pro Fac Ext Cet Arc Hub Fac Upp Upp Zhi Pro Res Arm Lab Res Qua Sec Slots Evolved 16 | . . . . . . 8 . . . . 2 . . . . 2 . . . . 2 . . 2 . . Power 1 | . . . . . . 1 . . . . . . . . . . . . . . . . . . . . Propulsion 5 | . . . . . . 4 . . . . 1 . . . . . . . . . . . . . . . Utility 10 | . . . . . . 3 . . . . 1 . . . . 2 . . . . 2 . . 2 . . Weapon . | . . . . . . . . . . . . . . . . . . . . . . . . . . . Parts Attached 252 | 7 11 1 12 1 3 29 3 2 . . 2 14 10 . 19 6 23 12 3 11 19 4 3 9 9 39 Power 33 | 1 2 . 2 . . 4 . 1 . . . 1 2 . 1 2 3 2 . 3 . 1 . 2 . 6 Engine 8 | 1 2 . 2 . . 1 . . . . . 1 . . . . 1 . . . . . . . . . Core 11 | . . . . . . 3 . 1 . . . . . . 1 . 2 2 . 2 . . . . . . Reactor 14 | . . . . . . . . . . . . . 2 . . 2 . . . 1 . 1 . 2 . 6 Propulsion 84 | 2 1 1 2 . . 8 1 1 . . 2 4 3 . 8 1 12 6 3 3 9 . . 4 3 10 Treads 9 | 2 . 1 1 . . 1 . . . . . . 3 . 1 . . . . . . . . . . . Leg 24 | . . . 1 . . . . . . . . . . . . . 9 . 3 2 5 . . 1 . 3 Wheel 3 | . . . . . . . . . . . . . . . . . 2 1 . . . . . . . . Hover 44 | . . . . . . 7 1 1 . . 2 4 . . 7 . 1 3 . 1 4 . . 3 3 7 Flight 4 | . 1 . . . . . . . . . . . . . . 1 . 2 . . . . . . . . Utility 90 | 2 2 . 2 . 1 13 2 . . . . 4 4 . 8 3 4 3 . 4 8 2 2 2 4 20 Device 36 | 1 . . 1 . 1 3 2 . . . . 3 . . 3 1 1 3 . 3 5 1 . . 2 6 Storage 6 | 1 2 . . . . . . . . . . . . . . . 2 . . . . . . . . 1 Processor 26 | . . . . . . 9 . . . . . 1 . . 1 2 1 . . . . . . 2 . 10 Hackware 11 | . . . . . . . . . . . . . . . 4 . . . . . 3 . . . 2 2 Protection 9 | . . . 1 . . 1 . . . . . . 4 . . . . . . 1 . 1 1 . . . Artifact 2 | . . . . . . . . . . . . . . . . . . . . . . . 1 . . 1 Weapon 45 | 2 6 . 6 1 2 4 . . . . . 5 1 . 2 . 4 1 . 1 2 1 1 1 2 3 Energy Gun 13 | 2 2 . 1 . . . . . . . . 4 1 . . . 1 . . . . . 1 1 . . Energy Cannon 3 | . . . 2 . . . . . . . . . . . . . 1 . . . . . . . . . Ballistic Gun 4 | . 2 . 1 . . . . . . . . . . . 1 . . . . . . . . . . . Ballistic Cannon 1 | . . . . . . 1 . . . . . . . . . . . . . . . . . . . . Launcher 4 | . 1 . . 1 . 1 . . . . . . . . . . . . . . 1 . . . . . Special Weapon 4 | . 1 . . . . . . . . . . . . . . . . . . 1 . . . . . 2 Impact Weapon 2 | . . . 1 . . . . . . . . . . . . . 1 . . . . . . . . . Slashing Weapon 8 | . . . . . 1 1 . . . . . 1 . . . . 1 1 . . . . . . 2 1 Piercing Weapon 3 | . . . 1 . . . . . . . . . . . . . . . . . 1 1 . . . . Special Melee Weapon 3 | . . . . . 1 1 . . . . . . . . 1 . . . . . . . . . . . Unidentified Prototypes 24 | . 1 . . . 1 3 . . . . . . . . . . 1 . 1 1 . 1 4 . 2 9 Parts Lost 83 | . . 1 1 . . 1 3 2 . . . 5 1 . 8 5 7 9 . 5 1 . . 1 . 33 Power 11 | . . . 1 . . 1 1 . . . . . . . 2 1 2 2 . 1 . . . . . . Propulsion 40 | . . 1 . . . . 1 2 . . . 3 1 . 5 3 4 5 . 1 . . . . . 14 Utility 26 | . . . . . . . . . . . . 2 . . . 1 . 1 . 2 1 . . 1 . 18 Weapon 6 | . . . . . . . 1 . . . . . . . 1 . 1 1 . 1 . . . . . 1 Highest Loss Streak 12 | . . 1 1 . . 1 2 2 . . . 1 1 . 6 5 5 9 . 4 1 . . 1 . 12 To Critical Strikes 1 | . . . . . . . . . . . . . . . 1 . . . . . . . . . . . Average Backups 16 | 2 14 19 15 14 14 16 15 17 20 20 19 19 20 20 19 19 12 18 18 18 18 18 18 18 17 14 Power . | . . 1 1 1 . . . . . . . . . . . . . . . . . . . . . 1 Propulsion . | . . 1 . . . . 1 2 3 3 2 . . . . . . . . . 1 2 2 1 . . Utility 9 | . 4 7 6 6 7 11 12 13 14 13 13 13 13 13 12 11 8 12 13 12 11 10 10 10 11 8 Weapon 4 | 1 7 10 6 6 5 2 . . 2 2 2 4 5 6 6 6 2 3 3 2 3 5 4 4 4 3 Tool/Special . | . . . . . . . . . . . . . . . . . . . . . . . . . . . Unused Backups 68 | . 4 . 10 . 10 11 2 . . 2 3 3 4 2 1 3 3 . 2 . . 1 3 2 . 2 Power 4 | . . . . . 1 . . . . . . . . . . . . . 1 . . . . 2 . . Propulsion 1 | . . . . . . . . . . . 1 . . . . . . . . . . . . . . . Utility 37 | . 1 . 2 . 6 9 1 . . 1 . 3 4 2 1 . 3 . 1 . . 1 1 . . 1 Weapon 21 | . 3 . 8 . 2 2 . . . 1 1 . . . . 3 . . . . . . 1 . . . Tool/Special 5 | . . . . . 1 . 1 . . . 1 . . . . . . . . . . . 1 . . 1 Average Slot Usage (%) 83 | . 96 99 81 77 73 69 86 75 80 79 78 84 86 82 84 66 81 85 99 98 99 98 99 98 95 81 Engine 4 | . 12 14 11 11 10 1 . . . . . 2 3 . . . 1 . . . . . . . . . Core 2 | . . . . . . 6 8 8 13 13 11 7 3 . 1 . 2 5 10 6 9 4 4 1 . . Reactor 1 | . . . . . . . . . . . . . 3 11 8 7 3 . . 3 . 3 4 6 7 6 Treads 4 | . 27 27 5 . . 2 . . . . . . 11 17 14 . . . . . . . . . . . Leg 8 | . . . 8 11 11 3 . . . . . . . . . . 21 8 6 19 23 22 22 15 . 4 Hover 8 | . . . . . . 11 30 20 20 20 22 26 15 5 11 14 2 13 20 15 6 9 9 12 26 15 Device 9 | . 14 14 15 11 10 4 6 6 6 6 8 4 1 . 1 9 5 9 10 14 9 16 15 15 10 9 Storage 7 | . 12 14 11 11 11 5 6 6 6 6 5 5 5 5 5 5 4 5 5 5 4 4 4 4 4 4 Processor 13 | . . . . . . 17 20 20 20 20 17 22 21 17 17 20 27 25 25 20 18 18 18 19 20 18 Protection 3 | . . . 4 11 11 3 . . . . . . 5 11 2 . 1 . . . 2 4 6 8 7 2 Energy Gun 3 | . 22 28 3 . . . . . . . . 3 8 . 3 . . . . 3 2 2 2 1 . . Energy Cannon 1 | . . . 13 . . . . . . . . . . . . . 1 . . . . . . . . . Ballistic Gun 2 | . 2 . 4 11 8 . . . . . . . . . . . . . . . . . . . . . Impact Weapon 1 | . . . . 5 8 . . . . . . . . . . . 1 . . . . . . . . . Slashing Weapon 4 | . . . . . . 6 8 12 10 12 10 6 2 11 6 3 7 12 11 10 9 5 4 4 4 3 Peak Build Rating 200 | 7 15 13 39 39 50 85 84 84 86 86 96 99 138 137 137 96 118 117 126 141 169 172 194 199 200 200 Average Rating 81 | 5 10 12 31 37 42 72 77 79 84 84 94 92 115 136 122 80 86 98 117 126 145 168 172 191 190 164 On Entrance 92 | . 7 13 13 39 39 43 83 76 84 84 81 95 87 136 137 62 60 99 110 124 126 158 171 175 190 199 Avg Prop Armor Cover (%) 7 | 25 27 . . . . 7 . 8 . . . . 4 1 2 8 6 9 12 11 8 5 3 2 . 5 Naked Turns . | . . . . . . . . . . . . . . . . . . . . . . . . . . . Heaviest Build 113 | 13 54 54 66 64 68 75 72 62 65 65 68 70 104 102 102 63 87 79 61 74 75 92 101 113 109 98 Greatest Support 268 | 40 40 40 55 55 55 72 70 66 66 66 78 78 240 240 268 42 140 120 90 120 140 140 140 143 105 100 Greatest Overweight (x) 4 | 3 2 1 1 1 1 3 1 1 . . . 1 1 . 1 4 2 2 1 1 . . . 1 1 4 Average Overweight (x) . | 2 . 1 1 1 . . . . . . . . . . . . . . . . . . . . . . Largest Inventory Capacity 20 | 8 20 20 20 20 20 20 20 20 20 20 20 20 20 20 20 20 20 20 20 20 20 20 20 20 20 20 Average Capacity 19 | 7 16 20 20 20 20 19 20 20 20 20 20 20 20 20 20 20 13 20 20 20 20 20 20 20 20 19 Most Carried 20 | 5 20 20 20 19 20 20 20 20 20 20 20 20 20 20 20 20 20 20 20 20 20 20 20 20 20 20 Average Carried 18 | 2 14 19 19 19 18 19 18 17 20 19 19 19 19 19 19 19 13 19 19 19 19 19 19 19 18 15 Final Capacity 20 | 8 20 20 20 20 20 20 20 20 20 20 20 20 20 20 20 20 20 20 20 20 20 20 20 20 20 5 Final Carried 20 | 4 20 19 19 19 20 20 20 20 20 20 20 20 20 20 19 20 20 20 20 20 20 19 20 18 20 5 Class Distribution -------------------- 47% | Mutant 21% | Scavenger-Gladiator 16% | Gladiator 4% | Hacker-Gladiator 3% | Scavenger-Mutant Dominant Class ---------------- Mutant | -10/Materials Mutant | -10/Mines Mutant | -10/Subcaves Mutant | -8/Recycling Mutant | -8/Scraptown Mutant | -6/Factory Mutant | -6/Lower Caves Gladiator | -6/Lower Caves Gladiator | -6/Data Miner Gladiator | -5/Proximity Caves Gladiator | -5/Factory Commander-Mutant | -5/Extension Scavenger-Mutant | -5/Cetus Scavenger-Gladiator | -5/Archives Scavenger-Mutant | -5/Hub_04(d) Mutant | -4/Factory Scavenger-Gladiator | -4/Upper Caves Gladiator | -4/Upper Caves Scavenger-Gladiator | -4/Zhirov Gladiator | -3/Proximity Caves Hacker-Gladiator | -3/Research Scavenger-Gladiator | -3/Armory Commander-Gladiator | -3/Lab Gladiator | -2/Research Hacker-Gladiator | -2/Quarantine Hacker-Gladiator | -2/Section 7 Resources | -11 -10 -10 -10 -8 -8 -6 -6 -6 -6 -5 -5 -5 -5 -5 -5 -4 -4 -4 -4 -3 -3 -3 -3 -2 -2 -2 ----------- Run | Yrd Mat Min Sub Rec Scr Fac Low Low Dat Pro Fac Ext Cet Arc Hub Fac Upp Upp Zhi Pro Res Arm Lab Res Qua Sec Matter Collected 6781 | 270 472 148 181 . 487 949 276 56 . 78 50 395 170 20 378 109 554 230 70 275 229 . 262 50 302 770 Remotely . | . . . . . . . . . . . . . . . . . . . . . . . . . . . Salvage Created 15921 | 239 807 536 492 48 . 1341 496 191 . 249 363 3900 99 313 1329 109 1200 624 263 620 548 . . 182 368 1604 Parts 728 | 21 62 30 26 3 . 67 29 8 . 4 13 136 1 30 54 1 32 21 4 32 19 . . 15 27 93 Haulers Intercepted 9 | . 2 . . . . 1 . . . . . . . . 3 1 . . . . 1 . . . . 1 Recyclers Shooed 14 | . 4 2 . . . 2 . . . . 1 4 . . 1 . . . . . . . . . . . Parts Field Recycled . | . . . . . . . . . . . . . . . . . . . . . . . . . . . Retrieved Matter . | . . . . . . . . . . . . . . . . . . . . . . . . . . . Parts Self-Destructed 96 | . . . 3 . . . 15 29 . 3 . . . . . . 13 10 3 20 . . . . . . Prevented 8 | . . . . . . . 1 1 . . . . . . . . 4 . . 2 . . . . . . Parts Restored . | . . . . . . . . . . . . . . . . . . . . . . . . . . . Kills | -11 -10 -10 -10 -8 -8 -6 -6 -6 -6 -5 -5 -5 -5 -5 -5 -4 -4 -4 -4 -3 -3 -3 -3 -2 -2 -2 ------- Run | Yrd Mat Min Sub Rec Scr Fac Low Low Dat Pro Fac Ext Cet Arc Hub Fac Upp Upp Zhi Pro Res Arm Lab Res Qua Sec Combat Hostiles Destroyed 148 | . 17 12 11 1 . 5 10 2 . . . 18 1 . 14 . 7 5 . 10 7 . . 2 5 21 Melee 66 | . . . . . . 3 1 2 . . . 15 . . 8 . 6 2 . 4 3 . . 2 5 15 Guns 29 | . 4 12 4 1 . . . . . . . 1 1 . 4 . . . . 2 . . . . . . Cannons 15 | . . . 7 . . . . . . . . . . . . . 1 1 . 2 1 . . . . 3 AOE 30 | . 13 . . . . 2 9 . . . . . . . . . . . . . 3 . . . . 3 Classes Destroyed 27 | 2 7 . 3 . . 2 2 . . . . . . . 3 . 4 . . 3 . . . . . 1 Worker 18 | . 2 . . . . 9 . . . . . 2 . . 5 . . . . . . . . . . . Builder 11 | . . . . . . 1 . . . . . 10 . . . . . . . . . . . . . . Tunneler 12 | 7 1 . . . . 2 . . . . . 1 . . 1 . . . . . . . . . . . Hauler 9 | . 2 . . . . 1 . . . . . . . . 3 1 . . . . 1 . . . . 1 Recycler 32 | 1 2 1 . . . 6 . . . . 3 18 . . 1 . . . . . . . . . . . Minesweeper 3 | . . . . . . . 1 . . . . . . . . . . 2 . . . . . . . . Mechanic 3 | . 1 . . . . . . . . . . 1 . . . . . . . . . . . . . 1 Operator 14 | . 1 . . . . 1 . . . . . 1 . 9 . . . . . . . . . . . 2 Drone 2 | . . . . . . . . . . . . . . . . . . . . 2 . . . . . . Watcher 12 | . 3 . . . . . . . . . . 3 1 . 2 . . . . . 1 . . 1 . 1 Swarmer 23 | . 3 4 . . . 2 3 . . . . 3 . . 2 . 2 . . . . . . . . 4 Cutter 3 | . . . . . . . . . . . . . . . 3 . . . . . . . . . . . Grunt 52 | . 14 8 1 . . 1 6 . . . . 10 . . 2 . 1 . . . 6 . . . 1 2 Brawler 1 | . . . . . . . . . . . . . . . . . 1 . . . . . . . . . Duelist 2 | . . . . . . . . . . . . . . . . . 2 . . . . . . . . . Researcher 2 | . . . . . . . . . . . . . . . . . 1 . . . . . . . . 1 Sentry 12 | . . . 1 1 . 1 1 1 . . . 5 . . 1 . 1 . . . . . . . . . Specialist 3 | . . . . . . . . . . . . . . . . . . . . 3 . . . . . . Hunter 6 | . . . . . . . . . . . . . . . 1 . . . . 4 1 . . . . . Programmer 24 | . . . . . . 1 . 1 . . . . . . 2 . . 4 . 1 . . . 2 4 9 Behemoth 1 | . . . . . . . . . . . . . . . 1 . . . . . . . . . . . Cetus Guard 1 | . . . . . . . . . . . . . 1 . . . . . . . . . . . . . Tracker 3 | . . . . . . . . . . . . . . . 1 . . . . . . . . . . 2 Combat Programmer 3 | . . . . . . . . . . . . . . . 1 . . . . . . . . . . 2 Executioner 2 | . . . . . . . . . . . . . . . . . . . . . . . . . . 2 Artisan 1 | . . . 1 . . . . . . . . . . . . . . . . . . . . . . . Subdweller 9 | . . . 9 . . . . . . . . . . . . . . . . . . . . . . . Decomposer 9 | . . . . . . . . 3 . . . . . . . . 6 . . . . . . . . . Packrat 3 | . . . . . . . . . . . . . . . . . 3 . . . . . . . . . Samaritan 9 | . . . . . . . 4 . . . . . . . . . . 3 . 2 . . . . . . Tinkerer 1 | . . . . . . . . . . . . . . . . . . . . 1 . . . . . . Mutant 2 | . . . . . . . . . . . . . . . . . 1 1 . . . . . . . . Best Kill Streak 11 | 4 9 5 2 1 . 4 4 2 . . 3 11 1 6 3 1 2 3 . 5 4 . . 2 3 6 Combat Bots Only 7 | . 7 4 2 1 . 3 4 2 . . . 4 1 . 3 . 2 3 . 5 4 . . 2 3 6 Max Kills in Single Turn 3 | 1 3 2 1 1 . 2 2 1 . . 1 1 1 1 1 1 1 1 . 1 1 . . 1 1 3 Gunslinging 1 | . 1 . . . . . . . . . . . . . . . . . . . . . . . . . Exploded 3 | . 3 . . . . 2 2 . . . . . . . . . . . . . 1 . . . . 3 Melee 2 | . . . . . . 1 1 1 . . . 1 . . 1 . 1 1 . 1 1 . . 1 1 2 Uniques/NPCs Destroyed 1 | . . . . . . . . . . . . . . . . . . . . . . . 1 . . . A5 (-3/Lab) Combat | -11 -10 -10 -10 -8 -8 -6 -6 -6 -6 -5 -5 -5 -5 -5 -5 -4 -4 -4 -4 -3 -3 -3 -3 -2 -2 -2 -------- Run | Yrd Mat Min Sub Rec Scr Fac Low Low Dat Pro Fac Ext Cet Arc Hub Fac Upp Upp Zhi Pro Res Arm Lab Res Qua Sec Hostile Shots Fired 1413 | . 38 33 33 . . 59 47 35 13 22 . 92 3 1 238 43 78 59 . 83 47 24 . 23 58 384 Missed 503 | . 13 14 8 . . 19 23 13 9 13 . 37 1 . 61 10 27 18 . 28 21 14 . 7 25 142 Deflected 15 | . . . . . . . . . . . . . . . . . . 1 . 3 2 . . 2 1 6 Hits 910 | . 25 19 25 . . 40 24 22 4 9 . 55 2 1 177 33 51 41 . 55 26 10 . 16 33 242 Melee 25 | . . . . . . . . 1 . 1 . . . . 9 . 14 . . . . . . . . . Projectile 885 | . 25 19 25 . . 40 24 21 4 8 . 55 2 1 168 33 37 41 . 55 26 10 . 16 33 242 AOE 3 | . . . . . . . . . . . . . . . 1 . . . . . 2 . . . . . Critical Strikes 54 | . . . . . . 2 . . . . . 3 . . 15 . 9 3 . . . . . 3 . 19 Actively Blocked 22 | . . . . . . . . . . . . . . . . . . . . . . . . 3 . 19 Part Disruptions 5 | . . . . . . . . 1 . . . . . . 1 . . . . 1 . . . 1 . 1 Actively Blocked 1 | . . . . . . . . . . . . . . . . . . . . . . . . 1 . . Damage Taken 18449 | . 307 300 531 . . 640 273 307 91 104 . 1010 120 29 3946 673 1316 747 . 857 495 124 . 311 705 5563 Core 4115 | . 43 56 150 . . 260 16 75 23 12 . 196 23 . 664 238 302 189 . 48 110 . . . 68 1642 Absorbed by Shields 1127 | . . . . . . 138 49 142 93 84 . 406 . . . . . . . . 142 47 . 26 . . Reduced by Siege Mode 214 | . . . . . . . . . . . . . . . 214 . . . . . . . . . . . Redirected to Core 153 | . . . . . . . . . . . . . . . . . . . . . . . . . . 153 Redirected to Shielding 91 | . . . . . . . . . . . . . . . . . . . . 91 . . . . . . Ignored by Resistances 13 | . . . . . . . . . . . . . . . . . . . . . 13 . . . . . Regen/Repaired (Parts) 487 | . . . . . . 8 . . . . . . . . . . . . . . 296 . . . 92 91 Core Remaining (%) 49 | 100 . . . . . . . . . 54 . . . . 11 . . . . 32 . . 100 . . . Volleys Fired 313 | 18 53 25 58 1 . 3 12 . . . . 25 7 . 48 . 14 6 . 23 6 3 3 1 . 7 Largest 2 | 2 2 2 2 2 . 1 1 . . . . 2 2 . 2 . 1 1 . 1 1 1 1 1 . 1 Hottest 300 | 80 100 90 160 70 . 44 36 . . . . 120 300 . 240 . 81 240 . 60 240 240 240 60 . 240 Shots Fired 479 | 36 85 50 98 2 . 3 12 . . . . 44 14 . 72 . 14 6 . 23 6 3 3 1 . 7 Gun 369 | 36 64 50 43 1 . . . . . . . 44 14 . 72 . . 6 . 23 3 3 3 1 . 6 Cannon 66 | . . . 50 . . 2 . . . . . . . . . . 14 . . . . . . . . . Launcher 37 | . 14 . 5 1 . 1 12 . . . . . . . . . . . . . 3 . . . . 1 Special 7 | . 7 . . . . . . . . . . . . . . . . . . . . . . . . . Kinetic 54 | . 10 . 35 2 . 2 . . . . . . . . 5 . . . . . . . . . . . Thermal 191 | 36 7 . 50 . . . . . . . . 13 9 . 45 . . 1 . 17 1 3 3 . . 6 Explosive 36 | . 14 . 5 . . 1 12 . . . . . . . . . . . . . 3 . . . . 1 Electromagnetic 198 | . 54 50 8 . . . . . . . . 31 5 . 22 . 14 5 . 6 2 . . 1 . . Robot Hit Streak 21 | 10 7 8 10 10 . 11 12 . . . . 9 8 . 21 . 6 11 . 14 11 . . . . . Robot Miss Streak 6 | 3 6 4 3 . . . 1 . . . . 3 1 . 1 . 2 . . 2 1 . . 1 . . Penetration Max . | . . . . . . . . . . . . . . . . . . . . . . . . . . . Secondary Targets 5 | . 2 2 . . . . . . . . . . . . 1 . . . . . . . . . . . Max Gunslinging Chain 1 | . 1 1 . . . . . . . . . . . . 1 . . . . . . . . . . . Capacitor 27 | . . . . . . . . . . . . . . . . . . 6 . 21 . . . . . . Autonomous 25 | . . . . . . . . . . . . . . . . . . 3 . 2 3 . . 1 2 14 Shots Hit Robots 737 | 25 49 42 40 1 2 42 13 12 2 5 5 171 10 11 107 1 43 24 8 30 17 . . 7 10 60 Core Hits 343 | 9 48 33 16 1 . 19 28 3 . . 3 48 3 7 35 1 19 8 4 12 11 . . 3 4 28 Critical Kills . | . . . . . . . . . . . . . . . . . . . . . . . . . . . Critical Parts Destroyed . | . . . . . . . . . . . . . . . . . . . . . . . . . . . Critical Strikes 12 | . . . 1 . . . . . . . . 4 1 . 2 . 1 . . 1 . . . . . 2 Burn 4 | . . . . . . . . . . . . . 1 . 2 . . . . 1 . . . . . . Destroy 1 | . . . 1 . . . . . . . . . . . . . . . . . . . . . . . Corrupt 1 | . . . . . . . . . . . . 1 . . . . . . . . . . . . . . Sever 2 | . . . . . . . . . . . . 1 . . . . 1 . . . . . . . . . Melee Attacks 749 | . . . 15 3 2 59 15 27 10 10 8 165 . 15 92 5 100 25 8 14 24 7 8 17 29 91 Impact 12 | . . . 2 3 . . . . . . . . . . . . 7 . . . . . . . . . Slashing 670 | . . . . . . 58 15 21 10 10 8 130 . 15 85 5 93 25 5 14 24 7 8 17 29 91 Piercing 13 | . . . 13 . . . . . . . . . . . . . . . . . . . . . . . Sneak Attacks 180 | . . . 2 . 2 22 6 11 2 . 3 70 . 9 21 1 10 6 3 4 2 . . . 1 5 Combat Hostiles 2 | . . . . . . . . . . . . 1 . . . . . . . 1 . . . . . . Follow-up Attacks 28 | . . . . . . 2 1 . 1 . . 8 . . 5 . 4 1 1 . . . . . . 5 Damage Inflicted 40229 | 280 1684 646 1055 20 . 2844 1542 493 78 436 382 7975 272 1101 4332 94 2287 2122 656 1626 1846 . . 569 1118 6771 Guns 5009 | 280 684 609 323 20 . . . . . . . 744 272 . 1334 . . 147 . 548 48 . . . . . Cannons 3014 | . . . 626 . . . . . . . . . . . . . 164 306 . 194 261 . . 83 188 1192 Explosions 3138 | . 1000 37 . . . 141 940 . . . . . . . 77 . . . . . 513 . . . . 430 Melee 29068 | . . . 106 . . 2703 602 493 78 436 382 7231 . 1101 2921 94 2123 1669 656 884 1024 . . 486 930 5149 Ramming . | . . . . . . . . . . . . . . . . . . . . . . . . . . . Kinetic 385 | . 79 . 260 20 . . . . . . . . . . 26 . . . . . . . . . . . Thermal 2663 | 280 105 37 626 . . . . . . . . 179 182 . 915 . . . . 339 . . . . . . Explosive 2919 | . 895 . . . . 141 940 . . . . . . . . . . . . . 513 . . . . 430 Electromagnetic 2970 | . 605 609 63 . . . . . . . . 565 90 . 470 . 164 147 . 209 48 . . . . . Impact . | . . . . . . . . . . . . . . . . . . . . . . . . . . . Slashing 28962 | . . . . . . 2703 602 493 78 436 382 7231 . 1101 2921 94 2123 1669 656 884 1024 . . 486 930 5149 Piercing 106 | . . . 106 . . . . . . . . . . . . . . . . . . . . . . . Phasic 2224 | . . . . . . . . . . . . . . . . . . 306 . 194 261 . . 83 188 1192 Highest Corruption 11 | . . . . . . . . 1 1 1 . . . . 11 . . 3 . . 1 1 1 . . 7 Average Corruption 2 | . . . . . . . . 1 1 1 . . . . 6 . . 2 . . 1 1 1 . . 4 Corruption Purged 3 | . . . . . . . . . . . . . . . . . . 3 . . . . . . . . Corruption Blocked 16 | . . . . . . . . . . . . . . . . . . . . . . . . 1 1 14 Effects 55 | . . . . . . . . 9 3 4 . . . . 17 . . 4 . . . 3 5 . . 10 Message Errors 15 | . . . . . . . . 3 . 1 . . . . 6 . . 2 . . . 1 1 . . 1 Matter Fused 16 | . . . . . . . . 2 3 2 . . . . 3 . . . . . . 1 1 . . 4 Heat Flow Errors 8 | . . . . . . . . 1 . . . . . . 2 . . 2 . . . 1 1 . . 1 Energy Discharges 8 | . . . . . . . . 2 . . . . . . 3 . . . . . . . 1 . . 2 Parts Fused 1 | . . . . . . . . . . . . . . . 1 . . . . . . . . . . . Data Loss (minor) 6 | . . . . . . . . 1 . 1 . . . . 2 . . . . . . . 1 . . 1 Alerts 1 | . . . . . . . . . . . . . . . . . . . . . . . . . . 1 Overload Shots 17 | . . . . . . . . . . . . 5 1 . 1 . . 1 . . 1 3 3 . . 2 Effects 1 | . . . . . . . . . . . . 1 . . . . . . . . . . . . . . Heat Surge 1 | . . . . . . . . . . . . 1 . . . . . . . . . . . . . . Overflow Damage 5944 | . 16 . 38 . . 620 150 160 . 363 . 1539 . 233 380 . 560 581 34 199 228 . . 14 180 649 Projectiles 260 | . . . . . . . . . . . . . . . . . . 126 . . . . . . 98 36 Explosions 76 | . 16 . . . . . . . . . . . . . . . . . . . . . . . . 60 Melee 5608 | . . . 38 . . 620 150 160 . 363 . 1539 . 233 380 . 560 455 34 199 228 . . 14 82 553 Knockbacks . | . . . . . . . . . . . . . . . . . . . . . . . . . . . Impact . | . . . . . . . . . . . . . . . . . . . . . . . . . . . Kinetic . | . . . . . . . . . . . . . . . . . . . . . . . . . . . Secondary . | . . . . . . . . . . . . . . . . . . . . . . . . . . . Self-Inflicted Damage 99 | . 28 20 . . . . 41 . . . . . . . . . . . . . 10 . . . . . Shots 5 | . 2 1 . . . . 1 . . . . . . . . . . . . . 1 . . . . . Rammed . | . . . . . . . . . . . . . . . . . . . . . . . . . . . Targets Rammed . | . . . . . . . . . . . . . . . . . . . . . . . . . . . Kicked . | . . . . . . . . . . . . . . . . . . . . . . . . . . . Crushed . | . . . . . . . . . . . . . . . . . . . . . . . . . . . Highest Temperature 364 | 108 177 159 94 27 . . . 112 . . . 300 216 . 364 3 160 297 . 64 144 151 237 . . 217 Average Temperature 70 | 36 53 65 26 14 . . . 60 . . . 67 76 . 98 2 66 134 . 36 78 76 90 . . 77 Received Heat Transfer 2081 | . 120 129 141 . . 47 50 44 . 12 . 189 . . 770 171 117 . . 9 75 . . . 27 180 Effects 6 | . . . . . . . . . . . . 2 . . 4 . . . . . . . . . . . Shutdowns 1 | . . . . . . . . . . . . . . . 1 . . . . . . . . . . . Interference 5 | . . . . . . . . . . . . 2 . . 3 . . . . . . . . . . . Siege Activations 3 | . . . . . . . . . . . . . . . 3 . . . . . . . . . . . Total Turns 88 | . . . . . . . . . . . . . . . 88 . . . . . . . . . . . Longest Duration 33 | . . . . . . . . . . . . . . . 33 . . . . . . . . . . . Martial Activations . | . . . . . . . . . . . . . . . . . . . . . . . . . . . Shielding Activations . | . . . . . . . . . . . . . . . . . . . . . . . . . . . Robots Disrupted 6 | . . . . . . 1 . . . . . . . . 3 . 1 . . . . . . . . 1 Combat Hostiles 4 | . . . . . . 1 . . . . . . . . 2 . 1 . . . . . . . . . Robots Corrupted 5 | . . . . . . . . . . . . 2 . . 1 . . 1 . 1 . . . . . . Combat Hostiles 4 | . . . . . . . . . . . . 2 . . . . . 1 . 1 . . . . . . Parts Fried 13 | . 2 2 . . . . . . . . . . . . 3 . . 4 . 2 . . . . . . Impact Corruptions . | . . . . . . . . . . . . . . . . . . . . . . . . . . . Robots Melted 3 | . . . . . . . . . . . . . . . 2 . . . . 1 . . . . . . Combat Hostiles 3 | . . . . . . . . . . . . . . . 2 . . . . 1 . . . . . . Parts Melted 9 | 1 . . 2 . . . . . . . . 2 1 . 2 . . . . 1 . . . . . . Heat Transferred 4914 | 650 100 50 814 . . . . . . . . 350 450 . 1750 . . . . 750 . . . . . . Parts Sabotaged . | . . . . . . . . . . . . . . . . . . . . . . . . . . . Parts Stolen . | . . . . . . . . . . . . . . . . . . . . . . . . . . . Parts Stripped 9 | . . . . . . . . . . . . . . . . . . 9 . . . . . . . . Power Chain Reactions 4 | . 2 1 . . . . . . . . . . . . 1 . . . . . . . . . . . Alert | -11 -10 -10 -10 -8 -8 -6 -6 -6 -6 -5 -5 -5 -5 -5 -5 -4 -4 -4 -4 -3 -3 -3 -3 -2 -2 -2 ------- Run | Yrd Mat Min Sub Rec Scr Fac Low Low Dat Pro Fac Ext Cet Arc Hub Fac Upp Upp Zhi Pro Res Arm Lab Res Qua Sec Maximum Alert Level 4 | . 1 1 . . . 2 . . . . . 3 2 1 4 2 . . . . 2 . . . . 1 Low Security (%) 53 | 100 25 95 . 100 . 75 . . . . 100 57 . 45 24 . . . . . . 100 . 100 100 37 Level 1 25 | . 74 4 . . . 10 . . . . . 3 . 54 3 2 . . . . 85 . . . . 62 Level 2 10 | . . . . . . 13 . . . . . 12 100 . 9 97 . . . . 15 . . . . . Level 3 7 | . . . . . . . . . . . . 25 . . 40 . . . . . . . . . . . Level 4 2 | . . . . . . . . . . . . . . . 21 . . . . . . . . . . . Level 5 . | . . . . . . . . . . . . . . . . . . . . . . . . . . . High Security . | . . . . . . . . . . . . . . . . . . . . . . . . . . . Max Security . | . . . . . . . . . . . . . . . . . . . . . . . . . . . Peak Influence 1193 | 10 357 207 . 77 . 594 . . . . 30 818 561 360 1193 579 . . . . 450 180 . 38 188 341 Initial 567 | . . 67 . . . . . . . . . 9 448 196 17 567 . . . . 450 180 . . 16 101 Average 248 | 2 220 77 . 16 . 117 . . . . 4 331 490 211 705 497 . . . . 331 115 . 4 30 206 Influence Increases 9739 | 40 690 428 55 143 . 940 255 68 . 30 47 1701 383 254 1941 27 325 115 10 180 710 45 . 104 340 908 Destroy 0b10 Robot/C 4020 | . 340 280 40 20 . 260 200 40 . . . 740 160 80 760 . 140 80 . 160 140 . . 40 100 440 Destroy 0b10 Robot/NC 670 | 40 60 5 . . . 130 5 . . 15 15 185 10 45 80 5 5 15 10 10 10 . . 5 . 20 Destroy Leader 672 | . 80 60 . . . 68 20 10 . . . 66 . . 186 2 . 20 . 10 14 . . 2 30 104 Allied During Kill 1392 | . . 22 . . . 96 . 3 . . . 395 161 125 590 . . . . . . . . . . . Successful Hack 246 | . 11 . . 23 . 48 . . . . . 30 . . 24 12 . . . . . 12 . . 9 77 Select Force Hacks 210 | . . . . 90 . 60 . . . . 30 . . . . . . . . . 30 . . . . . Disable Machine 555 | . 30 30 . . . 150 . . . . . 105 15 . 90 . . . . . . 15 . . 45 75 Destroy Structure 579 | . 79 1 . 10 . 98 . . . . 2 30 22 4 106 8 . . . . 66 18 . 27 36 72 Advance Influence 450 | . . . . . . . . . . . . . . . . . . . . . 450 . . . . . Partial Spotted 75 | . . . . . . . . . . . . 45 . . 15 . . . . . . . . 15 . . Lose Combat Pursuer 870 | . 90 30 15 . . 30 30 15 . 15 . 105 15 . 90 . 180 . . . . . . 15 120 120 Influence Decreases 9526 | 40 517 433 223 143 . 362 637 264 . 30 27 921 692 695 832 812 699 115 10 180 366 354 35 74 190 875 Entered New Map 2162 | . . 106 88 . . . 215 38 . . . 11 352 295 33 592 140 . . . . 164 35 . 14 79 Time Decay 5794 | 40 517 297 135 143 . 262 392 206 . 30 27 540 190 380 509 170 489 55 10 150 356 190 . 64 176 466 Lost Part 760 | . . 10 . . . . 30 20 . . . 50 10 . 80 50 70 60 . 30 10 . . 10 . 330 Lost Ally 810 | . . 20 . . . 100 . . . . . 320 140 20 210 . . . . . . . . . . . Squads Dispatched 54 | . 4 . . . . 10 . 1 . . 1 3 . . 11 3 . . . . 10 1 . 2 3 5 Investigation 16 | . 1 . . . . 5 . . . . 1 . . . . . . . . . 7 1 . 1 . . Extermination 14 | . . . . . . 4 . . . . . . . . 3 1 . . . . . . . 1 1 4 Reinforcement 18 | . 3 . . . . 1 . . . . . 2 . . 6 1 . . . . 3 . . . 2 . Assault 4 | . . . . . . . . 1 . . . 1 . . 1 1 . . . . . . . . . . Garrison . | . . . . . . . . . . . . . . . . . . . . . . . . . . . Intercept 2 | . . . . . . . . . . . . . . . 1 . . . . . . . . . . 1 Searches Triggered . | . . . . . . . . . . . . . . . . . . . . . . . . . . . Construction Impeded 2 | . . . . . . 1 . . . . . 1 . . . . . . . . . . . . . . Haulers Reinforced 6 | . . . . . . . . . . . . . . . 4 . . . . . 1 . . . 1 . Active Scanning Responses . | . . . . . . . . . . . . . . . . . . . . . . . . . . . Cargo Convoy Interrupts . | . . . . . . . . . . . . . . . . . . . . . . . . . . . Stealth | -11 -10 -10 -10 -8 -8 -6 -6 -6 -6 -5 -5 -5 -5 -5 -5 -4 -4 -4 -4 -3 -3 -3 -3 -2 -2 -2 --------- Run | Yrd Mat Min Sub Rec Scr Fac Low Low Dat Pro Fac Ext Cet Arc Hub Fac Upp Upp Zhi Pro Res Arm Lab Res Qua Sec Distress Signals 14 | . 2 . . . . . . . . . . 1 1 . 2 . . . . 1 6 . . 1 . . Communications Jammed . | . . . . . . . . . . . . . . . . . . . . . . . . . . . Distress Signals . | . . . . . . . . . . . . . . . . . . . . . . . . . . . Times Spotted 363 | . 37 16 11 . . 19 13 10 4 6 . 51 10 3 47 9 20 5 . 12 21 2 . 9 16 42 Peak Tracking Total 10 | . 7 3 2 . . 6 3 7 4 5 . 6 5 1 9 8 5 4 . 4 6 2 . 4 8 10 Tactical Retreats 40 | . 3 2 1 . . 2 2 1 . 1 . 4 1 . 4 . 9 . . . . . . 1 3 6 ECM-based Alert Blocks 5 | . . . . . . . . . . . . . . . . . . . . . . . . . . 5 Traps | -11 -10 -10 -10 -8 -8 -6 -6 -6 -6 -5 -5 -5 -5 -5 -5 -4 -4 -4 -4 -3 -3 -3 -3 -2 -2 -2 ------- Run | Yrd Mat Min Sub Rec Scr Fac Low Low Dat Pro Fac Ext Cet Arc Hub Fac Upp Upp Zhi Pro Res Arm Lab Res Qua Sec Traps Triggered 11 | . 1 . 1 . . 5 . . . . . 2 . . . . . . . . . 1 . . . 1 Indirectly . | . . . . . . . . . . . . . . . . . . . . . . . . . . . Trap Hack Attempts . | . . . . . . . . . . . . . . . . . . . . . . . . . . . Triggered . | . . . . . . . . . . . . . . . . . . . . . . . . . . . Disarmed . | . . . . . . . . . . . . . . . . . . . . . . . . . . . Reprogrammed . | . . . . . . . . . . . . . . . . . . . . . . . . . . . Reused 3 | . . . . . . . 1 2 . . . . . . . . . . . . . . . . . . Traps Extracted . | . . . . . . . . . . . . . . . . . . . . . . . . . . . Installed 4 | . . . . . . . 1 3 . . . . . . . . . . . . . . . . . . Triggered 3 | . . . . . . . 1 2 . . . . . . . . . . . . . . . . . . Most Traps Carried 6 | . . . 1 1 1 1 3 3 . . . . . . . . . 6 6 6 6 6 6 6 6 6 Machines | -11 -10 -10 -10 -8 -8 -6 -6 -6 -6 -5 -5 -5 -5 -5 -5 -4 -4 -4 -4 -3 -3 -3 -3 -2 -2 -2 ---------- Run | Yrd Mat Min Sub Rec Scr Fac Low Low Dat Pro Fac Ext Cet Arc Hub Fac Upp Upp Zhi Pro Res Arm Lab Res Qua Sec Machines Disabled 44 | . 2 2 1 . . 10 . . . 1 . 8 1 . 6 . . . . 1 . 1 2 . 3 6 Max in Single Turn 1 | . 1 1 1 . . 1 . . . 1 . 1 1 . 1 . . . . 1 . 1 1 . 1 1 Garrison Access 1 | . . . . . . . . . . . . . . . 1 . . . . . . . . . . . Machines Repaired . | . . . . . . . . . . . . . . . . . . . . . . . . . . . Machines Dismantled . | . . . . . . . . . . . . . . . . . . . . . . . . . . . Machines Sabotaged . | . . . . . . . . . . . . . . . . . . . . . . . . . . . Overloaded Fab Kills . | . . . . . . . . . . . . . . . . . . . . . . . . . . . Hacking | -11 -10 -10 -10 -8 -8 -6 -6 -6 -6 -5 -5 -5 -5 -5 -5 -4 -4 -4 -4 -3 -3 -3 -3 -2 -2 -2 --------- Run | Yrd Mat Min Sub Rec Scr Fac Low Low Dat Pro Fac Ext Cet Arc Hub Fac Upp Upp Zhi Pro Res Arm Lab Res Qua Sec Machines Accessed 114 | . 6 . 1 8 7 9 . 1 4 1 3 14 3 . 11 2 1 1 9 . 7 4 3 3 7 9 Terminals 63 | . 5 . . 3 . 5 . . . . 2 14 3 . 10 1 . 1 . . 1 4 . 1 5 8 Fabricators 2 | . . . . . . . . . . . . . . . . 1 . . . . . . . 1 . . Repair Stations 4 | . . . . . . 1 . . . . . . . . . . . . . . 1 . . . 1 1 Recycling Units 7 | . 1 . . 3 . 1 . . . . . . . . . . . . . . 2 . . . . . Scanalyzers 7 | . . . . . . 2 . . . . 1 . . . . . . . . . 2 . . 1 1 . Garrison Access 2 | . . . . . . . . . . . . . . . 1 . . . . . 1 . . . . . Total Hacks 375 | . 17 . 1 37 40 29 . 1 31 1 7 25 7 . 24 6 1 1 44 . 17 8 24 6 14 34 Successful 260 | . 5 . 1 32 40 11 . 1 31 1 3 8 2 . 12 3 1 1 44 . 8 1 24 2 8 21 Failed 112 | . 11 . . 5 . 18 . . . . 3 17 5 . 12 3 . . . . 8 7 . 4 6 13 Catastrophic 24 | . 3 . . 1 . 3 . . . . . 6 1 . 1 . . . . . 1 3 . 2 2 1 Database Lockouts 3 | . 1 . . . . . . . . . 1 . . . . . . . . . 1 . . . . . Manual 79 | . 8 . . 5 . 13 . . . . 1 2 1 . 19 2 . . . 1 9 1 . . 2 15 Terminals 157 | . 16 . . 9 . 18 . . . . 3 25 7 . 23 2 . 1 . . 2 8 . 2 10 31 Fabricators 7 | . . . . . . . . . . . . . . . . 4 . . . . . . . 3 . . Repair Stations 10 | . . . . . . 1 . . . . . . . . . . . . . . 4 . . . 2 3 Recycling Units 10 | . 1 . . 4 . 2 . . . . . . . . . . . . . . 3 . . . . . Scanalyzers 21 | . . . . . . 8 . . . . 4 . . . . . . . . . 6 . . 1 2 . Garrison Access 3 | . . . . . . . . . . . . . . . 1 . . . . . 2 . . . . . Terminal Hacks 209 | . 4 . 1 29 40 3 . 1 31 1 1 7 2 . 3 . 1 1 44 . . 1 24 . 5 10 Record 142 | . . . . 24 38 . . . 11 1 . . 2 . . . . 1 36 . . 1 23 . 3 2 Part Schematic 17 | . . . . 1 . . . . 12 . . . . . . . . . 4 . . . . . . . Robot Schematic 6 | . . . . 1 . . . . 5 . . . . . . . . . . . . . . . . . Robot Analysis 4 | . 2 . . . . 1 . . . . . . . . 1 . . . . . . . . . . . Prototype ID Bank 11 | . . . . 1 . 1 . . 3 . . . . . . . . . 4 . . . . . 1 1 Open Door 12 | . . . . . 1 . . 1 . . 1 6 . . . . 1 . . . . . . . . 2 Branch Access Points 1 | . . . . . . . . . . . . . . . . . . . . . . . . . . 1 Locate Traps 5 | . 1 . . . . 1 . . . . . 1 . . 2 . . . . . . . . . . . Surveillance Status 1 | . . . . . . . . . . . . . . . . . . . . . . . . . . 1 Investigation Status 1 | . . . . 1 . . . . . . . . . . . . . . . . . . . . . . Recall Reinforcements 1 | . . . . . . . . . . . . . . . . . . . . . . . . . 1 . Hauler Manifests 2 | . 1 . . . . . . . . . . . . . . . . . . . . . . . . 1 Registered Components 1 | . . . . . . . . . . . . . . . . . . . . . . . . . . 1 Registered Prototypes 1 | . . . . . . . . . . . . . . . . . . . . . . . . . . 1 Zone Layout 1 | . . . . 1 . . . . . . . . . . . . . . . . . . . . . . Proto ID Catalog 2 | . . . 1 . 1 . . . . . . . . . . . . . . . . . . . . . Release Object 1 | . . . . . . . . . . . . . . . . . . . . . . . 1 . . . Fabricator Hacks 4 | . . . . . . . . . . . . . . . . 2 . . . . . . . 2 . . Network Status 1 | . . . . . . . . . . . . . . . . 1 . . . . . . . . . . Load Schematic 1 | . . . . . . . . . . . . . . . . . . . . . . . . 1 . . Build 2 | . . . . . . . . . . . . . . . . 1 . . . . . . . 1 . . Repair Station Hacks 4 | . . . . . . . . . . . . . . . . . . . . . . . . . 2 2 Scan Component 2 | . . . . . . . . . . . . . . . . . . . . . . . . . 1 1 Repair 2 | . . . . . . . . . . . . . . . . . . . . . . . . . 1 1 Recycling Unit Hacks . | . . . . . . . . . . . . . . . . . . . . . . . . . . . Scanalyzer 9 | . . . . . . 4 . . . . 1 . . . . . . . . . 3 . . . 1 . Retrieve Study 9 | . . . . . . 4 . . . . 1 . . . . . . . . . 3 . . . 1 . Garrison Access Hacks 2 | . . . . . . . . . . . . . . . 1 . . . . . 1 . . . . . Seal Access 1 | . . . . . . . . . . . . . . . 1 . . . . . . . . . . . Coupler Status 1 | . . . . . . . . . . . . . . . . . . . . . 1 . . . . . Unauthorized Hacks 32 | . 1 . . 3 . 4 . . . . 1 1 . . 8 1 . . . . 4 . . . . 9 Terminals 20 | . 1 . . . . 1 . . . . . 1 . . 8 . . . . . . . . . . 9 Track 2 | . . . . . . . . . . . . . . . . . . . . . . . . . . 2 Assimilate 1 | . . . . . . . . . . . . . . . . . . . . . . . . . . 1 Botnet 4 | . . . . . . . . . . . . 1 . . 1 . . . . . . . . . . 2 Disrupt 4 | . . . . . . 1 . . . . . . . . . . . . . . . . . . . 3 Operators 1 | . . . . . . . . . . . . . . . . . . . . . . . . . . 1 Skim 8 | . 1 . . . . . . . . . . . . . 7 . . . . . . . . . . . Fabricators 1 | . . . . . . . . . . . . . . . . 1 . . . . . . . . . . Haulers 1 | . . . . . . . . . . . . . . . . 1 . . . . . . . . . . Repair Stations 2 | . . . . . . 1 . . . . . . . . . . . . . . 1 . . . . . Patch 2 | . . . . . . 1 . . . . . . . . . . . . . . 1 . . . . . Recycling Units 4 | . . . . 3 . . . . . . . . . . . . . . . . 1 . . . . . Tunnel 3 | . . . . 3 . . . . . . . . . . . . . . . . . . . . . . Fedlink 1 | . . . . . . . . . . . . . . . . . . . . . 1 . . . . . Scanalyzers 4 | . . . . . . 2 . . . . 1 . . . . . . . . . 1 . . . . . Extract 4 | . . . . . . 2 . . . . 1 . . . . . . . . . 1 . . . . . Garrison Access 1 | . . . . . . . . . . . . . . . . . . . . . 1 . . . . . Reprogram 1 | . . . . . . . . . . . . . . . . . . . . . 1 . . . . . Data Cores Recovered 2 | . . . . . . 1 . . . . . . . . . . . . . . . . . . . 1 Used 1 | . . . . . . . . . . . . . . . . . . . . . . . . . . 1 Hacking Detections 66 | . 6 . . 3 . 8 . . . . 1 10 3 . 10 2 . . . . 5 4 . 3 4 7 Full Trace Events 6 | . 1 . . . . 1 . . . . . . . . . . . . . . 2 1 . 1 . . Feedback Events 1 | . . . . . . . . . . . . . . . . . . . . . 1 . . . . . Corruption 1 | . . . . . . . . . . . . . . . . . . . . . 1 . . . . . Feedback Blocked . | . . . . . . . . . . . . . . . . . . . . . . . . . . . Robot Schematics Acquired 6 | . . . . 1 . . . . 5 . . . . . . . . . . . . . . . . . Robots Built . | . . . . . . . . . . . . . . . . . . . . . . . . . . . Authchips . | . . . . . . . . . . . . . . . . . . . . . . . . . . . Time . | . . . . . . . . . . . . . . . . . . . . . . . . . . . Total Robot Build Rating . | . . . . . . . . . . . . . . . . . . . . . . . . . . . Part Schematics Acquired 35 | . . . . 1 . 3 . . 12 . 1 . . . . . . . 4 . 8 . . . . 6 Parts Built 3 | . . . . . . . . . . . . . . . . 2 . . . . . . . 1 . . Authchips . | . . . . . . . . . . . . . . . . . . . . . . . . . . . Time 251 | . . . . . . . . . . . . . . . . 64 . . . . . . . 187 . . Total Part Build Rating 23 | . . . . . . . . . . . . . . . . 16 . . . . . . . 7 . . Part Studies Acquired 9 | . . . . . . 4 . . . . 1 . . . . . . . . . 3 . . . 1 . Parts Repaired 2 | . . . . . . . . . . . . . . . . . . . . . . . . . 1 1 Time 216 | . . . . . . . . . . . . . . . . . . . . . . . . . 108 108 Parts Recycled . | . . . . . . . . . . . . . . . . . . . . . . . . . . . Recycled Matter . | . . . . . . . . . . . . . . . . . . . . . . . . . . . Retrieved Matter . | . . . . . . . . . . . . . . . . . . . . . . . . . . . Retrieved Components . | . . . . . . . . . . . . . . . . . . . . . . . . . . . Parts Scanalyzed . | . . . . . . . . . . . . . . . . . . . . . . . . . . . Part Schematics Acquired . | . . . . . . . . . . . . . . . . . . . . . . . . . . . Parts Damaged . | . . . . . . . . . . . . . . . . . . . . . . . . . . . Bothacking | -11 -10 -10 -10 -8 -8 -6 -6 -6 -6 -5 -5 -5 -5 -5 -5 -4 -4 -4 -4 -3 -3 -3 -3 -2 -2 -2 ------------ Run | Yrd Mat Min Sub Rec Scr Fac Low Low Dat Pro Fac Ext Cet Arc Hub Fac Upp Upp Zhi Pro Res Arm Lab Res Qua Sec Used RIF Installer . | . . . . . . . . . . . . . . . . . . . . . . . . . . . Robots Hacked 5 | . . . . . 2 . . . . . . . . . . . . . 3 . . . . . . . Non-combat . | . . . . . . . . . . . . . . . . . . . . . . . . . . . Combat 5 | . . . . . 2 . . . . . . . . . . . . . 3 . . . . . . . Robot Hacks Applied 5 | . . . . . 2 . . . . . . . . . . . . . 3 . . . . . . . parse_system 5 | . . . . . 2 . . . . . . . . . . . . . 3 . . . . . . . Relay Couplers Released 3 | . . . . . . . . . . . . . . . 3 . . . . . . . . . . . Machine Destruction 3 | . . . . . . . . . . . . . . . 3 . . . . . . . . . . . Fabnet Peak Effective % . | . . . . . . . . . . . . . . . . . . . . . . . . . . . Robots Rewired 29 | . . . . . . 1 . 2 . . . 17 . . 2 . . . . . . 7 . . . . Allies Hacked 1 | . . . . . . . . . . . . . . . . . . . . . . . . . . 1 Hacks Repelled . | . . . . . . . . . . . . . . . . . . . . . . . . . . . Allies | -11 -10 -10 -10 -8 -8 -6 -6 -6 -6 -5 -5 -5 -5 -5 -5 -4 -4 -4 -4 -3 -3 -3 -3 -2 -2 -2 -------- Run | Yrd Mat Min Sub Rec Scr Fac Low Low Dat Pro Fac Ext Cet Arc Hub Fac Upp Upp Zhi Pro Res Arm Lab Res Qua Sec Total Allies 60 | . . 2 . . . 6 . 2 . . . 34 5 . 2 . . . . . 1 7 . . . 1 Largest Group 13 | . . 2 1 . . 5 . 2 1 . . 13 13 11 8 . . . . . 1 7 7 4 . 1 Highest-Rated Group 752 | . . 39 8 . . 235 . 52 20 . . 472 752 752 559 . . . . . 40 294 294 161 . 26 Highest-Rated Ally 159 | . . 31 8 . . 47 . 32 20 . . 159 159 153 96 . . . . . 40 42 42 42 . 26 Initial UFD Resources 46 | . . . . . . 24 24 24 24 28 28 28 28 28 28 30 30 30 30 34 34 44 44 46 46 46 Total Orders 6 | . . . . . . . 2 . 1 . . . . . . . . . . . . . 3 . . . STAY 3 | . . . . . . . . . 1 . . . . . . . . . . . . . 2 . . . FOLLOW 1 | . . . . . . . . . . . . . . . . . . . . . . . 1 . . . EXPLORE 1 | . . . . . . . 1 . . . . . . . . . . . . . . . . . . . RETURN 1 | . . . . . . . 1 . . . . . . . . . . . . . . . . . . . Ally Attacks 490 | . . 5 . . . 75 . 2 . . . 143 62 47 125 . . . . . . . 24 7 . . Total Damage 14462 | . . 83 . . . 2160 . 84 . . . 3096 1728 1528 4383 . . . . . . . 1117 283 . . Kills 81 | . . 2 . . . 15 . . . . . 22 8 5 28 . . . . . . . 1 . . . Allies Corrupted 4 | . . . . . . . . . . . . 1 . . . . . . . . . . 3 . . . Allies Melted . | . . . . . . . . . . . . . . . . . . . . . . . . . . . Intel | -11 -10 -10 -10 -8 -8 -6 -6 -6 -6 -5 -5 -5 -5 -5 -5 -4 -4 -4 -4 -3 -3 -3 -3 -2 -2 -2 ------- Run | Yrd Mat Min Sub Rec Scr Fac Low Low Dat Pro Fac Ext Cet Arc Hub Fac Upp Upp Zhi Pro Res Arm Lab Res Qua Sec Active Infowar (turns) 28891 | 1 1681 1364 2679 614 2883 1416 937 1186 150 378 101 1780 392 892 1441 349 3454 1707 273 1045 800 382 813 475 525 1173 Optics 19496 | . . . . . . 1416 937 1186 150 378 101 1780 392 892 1441 349 3454 1707 273 1045 800 382 813 475 525 1000 Sensors 6204 | . . . . . . . 655 543 94 344 73 62 . . . . 709 1559 273 966 491 . . . . 435 Terrain 624 | . . . . . . . . . . . . . . . . . . . . 617 . . . . . 7 Structural 446 | . . . . . . . . . . . . 445 1 . . . . . . . . . . . . . Seismic 15266 | 1 1681 1364 2679 614 2883 278 . . . . . . . . 25 310 2502 1466 270 945 248 . . . . . Machine Analysis 403 | . . . . . . 403 . . . . . . . . . . . . . . . . . . . . Cloaking 2 | . . . . . . . . . . . . . . . . . . . . . . . . . . 2 Jamming 331 | . . . . . . . . . . . . . . . . . . . . . . . . . . 331 ECM 59 | . . . . . . . . . . . . . . . . . . . . . . . . . 24 35 Robot Analysis Total 154 | . 2 . . . . 1 . . 151 . . . . . . . . . . . . . . . . . Derelict Logs Recovered 9 | . . . 1 . 3 . 2 1 . 1 . . . . . . . 1 . . . . . . . . Drone Launches 7 | . . . . . . . 2 . . . . . . . 5 . . . . . . . . . . . Drone Recoveries 4 | . . . . . . . 2 . . . . . . . 2 . . . . . . . . . . . Exploration | -11 -10 -10 -10 -8 -8 -6 -6 -6 -6 -5 -5 -5 -5 -5 -5 -4 -4 -4 -4 -3 -3 -3 -3 -2 -2 -2 ------------- Run | Yrd Mat Min Sub Rec Scr Fac Low Low Dat Pro Fac Ext Cet Arc Hub Fac Upp Upp Zhi Pro Res Arm Lab Res Qua Sec Turns Passed 31771 | 225 1681 1364 2691 614 5483 1446 937 1186 150 378 101 1780 392 892 1441 349 3454 1707 273 1045 800 382 813 475 525 1187 Spaces Moved 21971 | 88 862 520 1138 266 2690 1171 1334 1914 179 663 152 1869 202 204 762 208 2346 1162 202 747 538 222 508 376 535 1113 Core 324 | 85 223 . . . . . . . . . . . . . . . . . . . . . . . . 16 Treads 2218 | 3 639 520 209 . . . . . . . . . 168 204 475 . . . . . . . . . . . Legs 8878 | . . . 929 266 2690 414 . . . . . . . . . . 1582 245 81 747 538 222 508 266 . 390 Wheels 225 | . . . . . . . . . . . . . . . . . 225 . . . . . . . . . Hover 10326 | . . . . . . 757 1334 1914 179 663 152 1869 34 . 287 208 539 917 121 . . . . 110 535 707 Flight . | . . . . . . . . . . . . . . . . . . . . . . . . . . . Fastest Speed 16 | 50 50 240 200 200 130 36 36 43 52 52 48 40 44 160 62 74 80 117 112 108 105 114 114 16 17 22 Average Speed 115 | 172 166 240 207 200 198 97 62 52 52 52 48 44 145 160 124 135 111 121 118 117 111 114 114 93 74 72 Slowest Speed 460 | 200 320 240 240 200 200 230 94 106 52 52 48 105 160 160 181 360 190 260 190 190 120 114 114 190 96 460 Overloaded Moves 218 | . . . . . . . . . . . . . . . . . . . . . . . . 23 115 80 Propulsion Burnouts . | . . . . . . . . . . . . . . . . . . . . . . . . . . . Robots Hopped . | . . . . . . . . . . . . . . . . . . . . . . . . . . . Potential Cave-ins . | . . . . . . . . . . . . . . . . . . . . . . . . . . . Cave-ins Triggered . | . . . . . . . . . . . . . . . . . . . . . . . . . . . Teleports 1 | . . . . . . . . . . . . . . . . . . . . . . 1 . . . . Exploration Rate (%) 65 | 4 98 89 75 38 95 27 97 99 85 87 4 96 87 99 87 7 92 99 63 87 18 17 100 9 58 61 Regions Visited 26 Branch Regions 20 Pre-discovered Areas 35 | . . . . 3 1 . . . 26 . . . . . 1 . . 1 3 . . . . . . . Known Exits Taken 3 | . . . . . . 1 . . . . . . . . . . . . . 1 1 . . . . . Unknown Exits Taken 23 | 1 1 1 1 1 1 . 1 1 1 1 1 1 1 1 1 1 1 1 1 . . 1 1 1 1 . Scrap Searched 30 | . . 1 11 . 4 . 5 1 . 1 . . . . . . 1 4 . 2 . . . . . . Spaces Dug 226 | . 16 . 13 3 . 14 18 10 2 4 1 6 . . 18 4 52 4 . . 9 8 1 9 12 22 Terrain Destroyed 445 | . 87 1 45 17 . 16 75 10 2 4 1 6 1 . 33 4 52 4 . . 33 9 1 9 12 23 Melee 171 | . . . 4 3 . 13 6 10 2 4 1 6 . . 18 4 52 3 . . 9 7 . 9 12 8 Projectile 37 | . 6 . 11 . . 1 . . . . . . 1 . 12 . . 1 . . 1 2 1 . . 1 AOE 237 | . 81 1 30 14 . 2 69 . . . . . . . 3 . . . . . 23 . . . . 14 Terrain Rammed . | . . . . . . . . . . . . . . . . . . . . . . . . . . . Walls Destroyed . | . . . . . . . . . . . . . . . . . . . . . . . . . . . Machines Disabled . | . . . . . . . . . . . . . . . . . . . . . . . . . . . Actions | -11 -10 -10 -10 -8 -8 -6 -6 -6 -6 -5 -5 -5 -5 -5 -5 -4 -4 -4 -4 -3 -3 -3 -3 -2 -2 -2 --------- Run | Yrd Mat Min Sub Rec Scr Fac Low Low Dat Pro Fac Ext Cet Arc Hub Fac Upp Upp Zhi Pro Res Arm Lab Res Qua Sec Total 27022 | 122 1015 587 1356 343 2839 1390 1403 2075 220 680 172 2598 286 755 1054 272 3029 1426 231 888 698 339 726 477 632 1409 Wait 2956 | 5 44 42 98 72 106 58 20 119 31 1 . 485 41 533 83 39 501 191 . 60 73 28 178 47 34 67 Move 21945 | 87 861 519 1137 265 2689 1170 1333 1913 178 662 151 1868 201 203 761 207 2345 1161 201 746 537 221 507 375 534 1113 Hop . | . . . . . . . . . . . . . . . . . . . . . . . . . . . Pick Up 228 | 5 28 . 14 . 18 33 7 6 . 1 7 8 5 4 8 6 24 8 6 7 11 3 5 5 5 4 Fast Attach 190 | 6 2 . 1 . 1 25 . 1 . . . 4 5 . 11 5 25 10 5 5 8 3 9 7 6 51 Attach 90 | 1 3 1 2 . 2 5 3 1 . . 4 4 . . 4 2 5 7 . 8 6 1 1 5 7 18 Detach 29 | . . . . . 3 2 1 . . 1 . . . . . 1 2 3 . 1 . . . 4 4 7 Swap 228 | . 9 . 13 2 2 13 9 4 2 3 . 33 14 . 42 1 14 8 3 16 15 3 4 4 6 8 Drop 266 | . 15 . 18 . 16 25 5 4 . 2 4 6 13 4 11 6 11 8 9 8 18 6 11 12 7 47 Fire 313 | 18 53 25 58 1 . 3 12 . . . . 25 7 . 48 . 14 6 . 23 6 3 3 1 . 7 Melee 690 | . . . 15 3 2 56 12 23 9 10 6 148 . 11 86 5 88 24 7 14 24 7 8 17 29 86 Ram . | . . . . . . . . . . . . . . . . . . . . . . . . . . . Kick . | . . . . . . . . . . . . . . . . . . . . . . . . . . . Crush . | . . . . . . . . . . . . . . . . . . . . . . . . . . . Escape Stasis 17 | . . . . . . . . . . . . 16 . . . . . . . . . . . . . 1 Rewire 65 | . . . . . . . . . . . . 1 . . . . . . . . . 64 . . . . Trap 4 | . . . . . . . 1 3 . . . . . . . . . . . . . . . . . . Miscellaneous 1 | . . . . . . . . 1 . . . . . . . . . . . . . . . . . . Route ------- -11/Scrapyard -10/Materials (discovered 5 exits: [*Mat x3] / [*Min] / *Sub) -10/Mines (discovered 2 exits: [*Mat] / *Sub) -10/Subcaves (discovered 2 exits: [*Mat] / *Rec) -8/Recycling -8/Scraptown (discovered 2 exits: *Fac x2) -6/Factory -6/Lower Caves -6/Lower Caves (discovered 2 exits: *Fac / *Dat) -6/Data Miner -5/Proximity Caves -5/Factory (discovered 2 exits: Upp / *Ext) -5/Extension (discovered 2 exits: *Fac / *Cet) -5/Cetus (discovered 2 exits: *Fac / *Arc) -5/Archives (discovered 3 exits: *Fac / *Hub x2) -5/Hub_04(d) (discovered 4 exits: *Fac x4) -4/Factory (discovered 2 exits: *Upp x2) -4/Upper Caves -4/Upper Caves (discovered 2 exits: *Res / *Zhi) -4/Zhirov -3/Proximity Caves -3/Research (discovered 2 exits: *Arm / [*Tes]) -3/Armory -3/Lab -2/Research -2/Quarantine (discovered 3 exits: [*Acc] / *Sec / [*Frg]) -2/Section 7 (discovered 1 exit: [*Acc]) History --------- Turn | Location | Event 8 | -11/Scrapyard | Discovered new exit (range 15) 226 | -11/Scrapyard | Entered Materials 315 | -10/Materials | Build established: Mutant 385 | -10/Materials | Discovered new exit (range 13) 441 | -10/Materials | Discovered new exit (range 16) 483 | -10/Materials | Destroyed 7 combat bots 551 | -10/Materials | Discovered new exit (range 13) 1318 | -10/Materials | Discovered new exit (range 6) 1332 | -10/Materials | Discovered new exit (range 10) 1681 | -10/Materials | Central database locked down 1907 | -10/Materials | Entered Mines 2244 | -10/Mines | Received a Rocket Launcher from a helpful Derelict 2556 | -10/Mines | Discovered new exit (range 6) 2983 | -10/Mines | Discovered new exit (range 8) 3271 | -10/Mines | Entered Subcaves 3271 | -10/Subcaves | Accompanied by 1 ally 3272 | -10/Subcaves | Approached by a straggling Scientist 3311 | -10/Subcaves | Ambushed by Subdweller buried in earth 3407 | -10/Subcaves | Shifting Twisted Machinery released Sub. Power Source 3622 | -10/Subcaves | Shifting Twisted Machinery released Sub. Beam Cannon 3796 | -10/Subcaves | Visited 4L-MR0's lab 3830 | -10/Subcaves | Found Cargo Legs 3831 | -10/Subcaves | Attached Cargo Legs, gained temporary slots: Utility x2 3837 | -10/Subcaves | Found Prototype Special Melee Weapon 3957 | -10/Subcaves | Core integrity fell below 50% 4084 | -10/Subcaves | Disturbed a concealed Subdweller 4150 | -10/Subcaves | Core integrity fell below 20% 4301 | -10/Subcaves | Shifting Twisted Machinery released Riot Gun 4305 | -10/Subcaves | Shifting Twisted Machinery released Battle Rifle 4460 | -10/Subcaves | Learned Materials stockpile data 4630 | -10/Subcaves | A swath of the cavern ceiling suddenly collapsed 4685 | -10/Subcaves | A swath of the cavern ceiling suddenly collapsed 5054 | -10/Subcaves | Discovered new exit (range 9) 5958 | -10/Subcaves | Discovered new exit (range 3) 5962 | -10/Subcaves | Entered Recycling 5963 | -8/Recycling | Met a Zionite searching for Scraptown 6514 | -8/Recycling | Scanned before Scraplab entrance 6542 | -8/Recycling | Entered Scraplab 6572 | -8/Recycling | Discovered new exit (range 3) 6576 | -8/Recycling | Entered Scraptown 7137 | -8/Scraptown | Discovered new exit (range 9) 7203 | -8/Scraptown | Scanned Subdweller tech in exchange for log data 7209 | -8/Scraptown | Learned location of Armory (-3) 7211 | -8/Scraptown | Learned Research terminal intel 7401 | -8/Scraptown | Visited SPCMW 7465 | -8/Scraptown | Visited TADAMA 7507 | -8/Scraptown | Visited IN-MT5's Study 7627 | -8/Scraptown | Visited Shadow of the Wyrm 8003 | -8/Scraptown | Visited Awakened 8053 | -8/Scraptown | Visited Fellowship of the Rings 8105 | -8/Scraptown | Visited Comm Corps 8225 | -8/Scraptown | Visited UFD Registry 8225 | -8/Scraptown | Registered with UFD as "Phaseglider" 8293 | -8/Scraptown | Visited LU-1G1's Boring Crew 8389 | -8/Scraptown | Visited Infowarlord's Domain 8421 | -8/Scraptown | Visited Scrap Suit Storage 8635 | -8/Scraptown | Visited Curators Association 8689 | -8/Scraptown | Visited Scrapoid Pod Storage 8715 | -8/Scraptown | Visited Supply Room 8853 | -8/Scraptown | Visited Derelict Rescue Squad 8901 | -8/Scraptown | Visited Sword Containment 8931 | -8/Scraptown | Visited Science Guys 9464 | -8/Scraptown | Found Scrapoid Pod 10575 | -8/Scraptown | Found DRS Beacon 10684 | -8/Scraptown | Discovered new exit (range 5) 10911 | -8/Scraptown | Found Prototype Slashing Weapon 11863 | -8/Scraptown | Found Spectral Analyzer 11992 | -8/Scraptown | Met Optimus 11992 | -8/Scraptown | Accepted into 0bPrime 11992 | -8/Scraptown | Identified Companion Sword 12059 | -8/Scraptown | Entered Factory 12059 | -6/Factory | Evolved 8 slots: Power x1, Propulsion x4, Utility x3 12640 | -6/Factory | Scrapoid Pod released 06F05-D (x5) 12660 | -6/Factory | Found Prototype Processor 12660 | -6/Factory | Identified Exp. Targeting Computer 13047 | -6/Factory | Spotted B-75 Beast 13219 | -6/Factory | Discovered new exit (range 7) 13226 | -6/Factory | Identified exit to Lower Caves 13312 | -6/Factory | Build established: Gladiator 13505 | -6/Factory | Entered Lower Caves 13680 | -6/Lower Caves | Encountered a Warlord checkpoint 13705 | -6/Lower Caves | Build established: Mutant 13800 | -6/Lower Caves | Learned Factory security intel 13865 | -6/Lower Caves | Learned Factory terminal intel 13886 | -6/Lower Caves | Attracted the attention of an 0b10 checkpoint 13961 | -6/Lower Caves | Discovered new exit (range 6) 14100 | -6/Lower Caves | Spotted B-75 Beast 14442 | -6/Lower Caves | Entered another Lower Caves area 14457 | -6/Lower Caves | Attracted the attention of an 0b10 outpost 14458 | -6/Lower Caves | Activated DRS Beacon 14477 | -6/Lower Caves | Encountered a Warlord checkpoint 14486 | -6/Lower Caves | Build established: Gladiator 14572 | -6/Lower Caves | Discovered new exit (range 14) 14588 | -6/Lower Caves | P-60 Hacker assimilated allied Guardian 5a 14776 | -6/Lower Caves | Discovered new exit (range 8) 15628 | -6/Lower Caves | Entered Data Miner 15628 | -6/Data Miner | Accompanied by 1 ally 15628 | -6/Data Miner | Discovered new exit (range 6) 15634 | -6/Data Miner | Met Data Miner 15649 | -6/Data Miner | Learned location of Section 7 (-2) 15649 | -6/Data Miner | Acquired the access code to Warlord's prototype stash 15658 | -6/Data Miner | Received God Mode back door access code from Data Miner 15721 | -6/Data Miner | Interfaced with the Data Conduit 15778 | -6/Data Miner | Entered Proximity Caves 15893 | -5/Proximity Caves | Found Alien Artifact 15987 | -5/Proximity Caves | Spotted B-75 Beast 16137 | -5/Proximity Caves | Attracted the attention of an 0b10 checkpoint 16145 | -5/Proximity Caves | Discovered new exit (range 22) 16156 | -5/Proximity Caves | Entered Factory 16156 | -5/Factory | Evolved 2 slots: Propulsion x1, Utility x1 16157 | -5/Factory | Identified exit to Upper Caves 16159 | -5/Factory | Loaded intel: 286 machine locations 16160 | -5/Factory | Loaded intel: 28 terminal locations 16245 | -5/Factory | Discovered new exit (range 10) 16249 | -5/Factory | Central database locked down 16257 | -5/Factory | Entered Extension 16258 | -5/Extension | Loaded intel: 40 machine locations 16285 | -5/Extension | Disrupted transfer network 16439 | -5/Extension | Rescued a captive Derelict 16641 | -5/Extension | Spotted B-75 Beast 16684 | -5/Extension | Allies destroyed B-75 Beast 16689 | -5/Extension | Spotted B-75 Beast 16702 | -5/Extension | Build established: Commander-Mutant 16780 | -5/Extension | Allies destroyed B-75 Beast 16814 | -5/Extension | Lost 7 allies 17042 | -5/Extension | Rescued a captive Derelict 17043 | -5/Extension | Rescued a captive Derelict 17063 | -5/Extension | Rescued a captive Derelict 17063 | -5/Extension | Rescued a captive Derelict 17086 | -5/Extension | Rescued a captive Derelict 17165 | -5/Extension | Build established: Gladiator 17180 | -5/Extension | Rescued A7 17280 | -5/Extension | Discovered new exit (range 24) 17318 | -5/Extension | Discovered new exit (range 23) 17399 | -5/Extension | Rescued a captive Derelict 17399 | -5/Extension | Rescued a captive Derelict 17421 | -5/Extension | Rescued a captive Derelict 17422 | -5/Extension | Rescued a captive Derelict 17457 | -5/Extension | First assault squad dispatched 17522 | -5/Extension | Rescued a captive Derelict 17523 | -5/Extension | Rescued a captive Derelict 17640 | -5/Extension | Rescued a captive Derelict 17644 | -5/Extension | Rescued a captive Derelict 17645 | -5/Extension | Rescued a captive Derelict 17651 | -5/Extension | Rescued a captive Derelict 17913 | -5/Extension | Build established: Commander-Mutant 18037 | -5/Extension | Entered Cetus 18037 | -5/Cetus | Accompanied by 13 allies (A7) 18038 | -5/Cetus | Loaded intel: 24 machine locations 18042 | -5/Cetus | Acquired a Cetus Manufacturing Module code from A7 18047 | -5/Cetus | Spotted Cetus Guard 18047 | -5/Cetus | Spotted Cetus Guard 18047 | -5/Cetus | Spotted Cetus Guard 18047 | -5/Cetus | Spotted Cetus Guard 18065 | -5/Cetus | Allies destroyed Cetus Guard 18078 | -5/Cetus | Allies destroyed Cetus Guard 18080 | -5/Cetus | Allies destroyed Cetus Guard 18089 | -5/Cetus | Allies destroyed Cetus Guard 18108 | -5/Cetus | Lost 4 allies 18187 | -5/Cetus | Started Cetus Manufacturing Module 18202 | -5/Cetus | Escorted A7 to Cetus Mainframe 18212 | -5/Cetus | Manufactured an Enhanced Grunt 18214 | -5/Cetus | Discovered new exit (range 23) 18237 | -5/Cetus | Manufactured an Enhanced Grunt 18259 | -5/Cetus | Spotted Cetus Guard 18260 | -5/Cetus | Spotted Cetus Guard 18262 | -5/Cetus | Manufactured an Enhanced Grunt 18262 | -5/Cetus | Spotted Cetus Guard 18262 | -5/Cetus | Spotted Cetus Guard 18264 | -5/Cetus | Discovered new exit (range 23) 18275 | -5/Cetus | Allies destroyed Cetus Guard 18277 | -5/Cetus | Allies destroyed Cetus Guard 18281 | -5/Cetus | Destroyed Cetus Guard 18282 | -5/Cetus | Allies destroyed Cetus Guard 18287 | -5/Cetus | Manufactured an Enhanced Grunt 18299 | -5/Cetus | Met Revision 17 18310 | -5/Cetus | Lost 3 allies 18312 | -5/Cetus | Manufactured an Enhanced Grunt 18429 | -5/Cetus | Entered Archives 18429 | -5/Archives | Accompanied by 11 allies (A7) 18430 | -5/Archives | Loaded intel: 8 machine locations 18435 | -5/Archives | Received a hacking code to weaken MAIN.C 18482 | -5/Archives | Discovered new exit (range 23) 18510 | -5/Archives | Discovered new exit (range 22) 18572 | -5/Archives | Discovered new exit (range 23) 18584 | -5/Archives | Build established: Scavenger-Gladiator 18678 | -5/Archives | Unable to access archive contents 19321 | -5/Archives | Entered Hub_04(d) 19321 | -5/Hub_04(d) | Accompanied by 8 allies 19322 | -5/Hub_04(d) | Loaded intel: 118 machine locations 19379 | -5/Hub_04(d) | Discovered new exit (range 3) 19921 | -5/Hub_04(d) | First assault squad dispatched 19983 | -5/Hub_04(d) | Spotted B-75 Beast 20007 | -5/Hub_04(d) | Build established: Scavenger-Mutant 20020 | -5/Hub_04(d) | Destroyed B-75 Beast 20087 | -5/Hub_04(d) | Disrupted transfer network 20197 | -5/Hub_04(d) | Intercept squad dispatched 20200 | -5/Hub_04(d) | Spotted Tracker 20207 | -5/Hub_04(d) | Spotted Combat Programmer 20210 | -5/Hub_04(d) | Destroyed Tracker 20222 | -5/Hub_04(d) | Destroyed Combat Programmer 20309 | -5/Hub_04(d) | Discovered new exit (range 12) 20538 | -5/Hub_04(d) | Core integrity fell below 50% 20575 | -5/Hub_04(d) | Discovered new exit (range 19) 20679 | -5/Hub_04(d) | Learned location of 2 exits from Proximity Caves 20703 | -5/Hub_04(d) | Discovered new exit (range 20) 20725 | -5/Hub_04(d) | Learned 2 Upper Caves zone layouts 20738 | -5/Hub_04(d) | System corruption reached 10% 20746 | -5/Hub_04(d) | Lost 3 allies 20756 | -5/Hub_04(d) | Core integrity fell below 20% 20762 | -5/Hub_04(d) | Entered Factory 20762 | -4/Factory | Evolved 2 slots: Utility x2 20763 | -4/Factory | Loaded intel: 266 machine locations 20792 | -4/Factory | Lost 6 parts (1p4n1w) 20835 | -4/Factory | Fabricated Mic. Antimatter Reactor (x2) 20920 | -4/Factory | Build established: Mutant 21012 | -4/Factory | First assault squad dispatched 21030 | -4/Factory | Found Quantum Capacitor 21063 | -4/Factory | Discovered new exit (range 19) 21101 | -4/Factory | Discovered new exit (range 17) 21111 | -4/Factory | Entered Upper Caves 21113 | -4/Upper Caves | Attracted the attention of an 0b10 checkpoint 21139 | -4/Upper Caves | Lost 5 parts (1p3n1u) 21280 | -4/Upper Caves | Encountered a Warlord checkpoint 21931 | -4/Upper Caves | Build established: Scavenger-Mutant 22251 | -4/Upper Caves | Build established: Scavenger-Gladiator 22289 | -4/Upper Caves | Found Alien Artifact 22289 | -4/Upper Caves | Identified Core Expander 22289 | -4/Upper Caves | Installed Core Expander, added new Weapon slot 22435 | -4/Upper Caves | Discovered new exit (range 14) 23198 | -4/Upper Caves | Attracted the attention of an 0b10 outpost 23257 | -4/Upper Caves | Lost 5 parts (2p3n) 24565 | -4/Upper Caves | Entered another Upper Caves area 24566 | -4/Upper Caves | Forged Quantum Companion 24620 | -4/Upper Caves | Discovered new exit (range 5) 24866 | -4/Upper Caves | Core integrity fell below 50% 24928 | -4/Upper Caves | Lost 9 parts (2p5n1u1w) 25167 | -4/Upper Caves | Build established: Gladiator 25337 | -4/Upper Caves | Discovered new exit (range 10) 25382 | -4/Upper Caves | Attacked by a delusional Derelict stockpiling parts 26241 | -4/Upper Caves | Build established: Scavenger-Gladiator 26272 | -4/Upper Caves | Entered Zhirov 26272 | -4/Zhirov | Discovered new exit (range 3) 26294 | -4/Zhirov | Met Zhirov 26363 | -4/Zhirov | Zhirov requested help retrieving the SGEMP Prototype 26400 | -4/Zhirov | Found Alien Artifact 26400 | -4/Zhirov | Identified Integrated Dissipator 26400 | -4/Zhirov | Installed Integrated Dissipator, increased core heat dissipation (+20) 26499 | -4/Zhirov | Found Alien Artifact 26545 | -4/Zhirov | Entered Proximity Caves 26546 | -3/Proximity Caves | Identified exit to Research 26593 | -3/Proximity Caves | Lost 4 parts (1p2u1w) 26782 | -3/Proximity Caves | Spotter reported a threat 26796 | -3/Proximity Caves | Spotter reported a threat 26828 | -3/Proximity Caves | Acquired the password to a Derelict Tinkerer's latest research 26838 | -3/Proximity Caves | Found Prototype Special Weapon 26838 | -3/Proximity Caves | Identified Molecular Deconstructor 26864 | -3/Proximity Caves | Build established: Gladiator 26877 | -3/Proximity Caves | Spotter reported a threat 26931 | -3/Proximity Caves | Caught by Unaware searching for contraband prototypes 27268 | -3/Proximity Caves | Caught by Unaware searching for contraband prototypes 27572 | -3/Proximity Caves | Build established: Scavenger-Gladiator 27590 | -3/Proximity Caves | Entered Research 27590 | -3/Research | Evolved 2 slots: Utility x2 27591 | -3/Research | Identified exit to Armory 27592 | -3/Research | Loaded intel: 117 machine locations 27593 | -3/Research | Loaded intel: 20 terminal locations 27790 | -3/Research | Revision forces began assault on 0b10 27821 | -3/Research | Met up with Revision 17++ 27927 | -3/Research | Build established: Hacker-Gladiator 27991 | -3/Research | Central database locked down 28029 | -3/Research | Watched by a mysterious "MATRIX" hacker. 28050 | -3/Research | Discovered new exit (range 23) 28052 | -3/Research | Loaded intel: 5 recycling unit locations 28126 | -3/Research | Found Fusion Bomb Launcher 28290 | -3/Research | Research terminal network offline 28315 | -3/Research | Found Exp. Thermal Shield 28362 | -3/Research | Spotted Striker 28390 | -3/Research | Entered Armory 28391 | -3/Armory | Loaded intel: 98 machine locations 28442 | -3/Armory | Build established: Scavenger-Gladiator 28586 | -3/Armory | Found Exp. System Shield 28587 | -3/Armory | Identified Transdimensional Reconstructor 28587 | -3/Armory | Warped through subspace to slip node 28587 | -3/Armory | Discovered new exit (range 1) 28772 | -3/Armory | Entered Lab 28772 | -3/Lab | Accompanied by 7 allies 28772 | -3/Lab | Discovered new exit (range 9) 28799 | -3/Lab | Hidden lab's door opened automatically 28799 | -3/Lab | Sensor layout match revealed 28800 | -3/Lab | Gained access to the hidden lab's interior 28809 | -3/Lab | Decrypted terminal 28823 | -3/Lab | Decrypted terminal 28941 | -3/Lab | Decrypted terminal 28941 | -3/Lab | Acquired modification code for an L2 power cell 29015 | -3/Lab | Build established: Commander-Gladiator 29130 | -3/Lab | Found Integrated Dissipator 29130 | -3/Lab | Installed Integrated Dissipator, increased core heat dissipation (+20) 29140 | -3/Lab | Found Alien Artifact 29140 | -3/Lab | Identified Core Regenerator 29140 | -3/Lab | Used Core Regenerator, restored core integrity (+227) 29157 | -3/Lab | Found Transdimensional Reconstructor 29186 | -3/Lab | Found Prototype Energy Gun 29186 | -3/Lab | Identified Hyp. EM Gauss Rifle 29193 | -3/Lab | Found Prototype Protection 29193 | -3/Lab | Identified Exp. Powered Armor 29326 | -3/Lab | Detected for breach 29345 | -3/Lab | Decrypted terminal 29458 | -3/Lab | Found Deep Network Scanner 29498 | -3/Lab | Decrypted terminal 29500 | -3/Lab | Decrypted terminal 29501 | -3/Lab | Found Alien Artifact 29501 | -3/Lab | Identified LC Capacitor 29504 | -3/Lab | Decrypted terminal 29564 | -3/Lab | Found Alien Artifact 29585 | -3/Lab | Entered Research 29585 | -2/Research | Accompanied by 4 allies 29585 | -2/Research | Evolved 2 slots: Utility x2 29586 | -2/Research | Loaded intel: 133 machine locations 29622 | -2/Research | Build established: Scavenger-Gladiator 29715 | -2/Research | Found Exp. Core Analyzer 29719 | -2/Research | Spotted B-90 Cyclops 29762 | -2/Research | Lost 4 allies 29836 | -2/Research | Discovered new exit (range 24) 29955 | -2/Research | Fabricated Assault Drone Bay? 30060 | -2/Research | Entered Quarantine 30061 | -2/Quarantine | Loaded intel: 73 machine locations 30135 | -2/Quarantine | Found Alien Artifact 30136 | -2/Quarantine | Identified Core Reset Matrix 30136 | -2/Quarantine | Identified Phase Redirector 30136 | -2/Quarantine | Used Core Reset Matrix 30140 | -2/Quarantine | Detected hypermatrix surge 30140 | -2/Quarantine | Sensed 11 artifacts in vicinity 30183 | -2/Quarantine | Repaired Cld. Antigrav System? 30185 | -2/Quarantine | Found Subatomic Replicator 30187 | -2/Quarantine | Forged Prototype Slashing Weapon 30281 | -2/Quarantine | Discovered new exit (range 18) 30505 | -2/Quarantine | Spotted Alpha 7 30525 | -2/Quarantine | Spotted Fortress 30578 | -2/Quarantine | Discovered new exit (range 6) 30578 | -2/Quarantine | Discovered new exit (range 6) 30581 | -2/Quarantine | Build established: Hacker-Gladiator 30585 | -2/Quarantine | Entered Section 7 30586 | -2/Section 7 | Detected hypermatrix surge 30586 | -2/Section 7 | Sensed 22 artifacts in vicinity 30606 | -2/Section 7 | Spotted S7 Guard 30686 | -2/Section 7 | Discovered new exit (range 24) 30745 | -2/Section 7 | Found Prototype Reactor 30745 | -2/Section 7 | Identified Zero-point Reactor 30756 | -2/Section 7 | Found Zero-point Reactor 30800 | -2/Section 7 | Repaired Cld. Antigrav System 30822 | -2/Section 7 | Spotted S7 Guard 30875 | -2/Section 7 | Intercept squad dispatched 30881 | -2/Section 7 | Spotted Tracker 30885 | -2/Section 7 | Spotted Tracker 30886 | -2/Section 7 | Found Integrated Reactor 30886 | -2/Section 7 | Installed Integrated Reactor, increased core energy generation (+10) 30887 | -2/Section 7 | Destroyed Tracker 30895 | -2/Section 7 | Destroyed Tracker 30907 | -2/Section 7 | Spotted Combat Programmer 30907 | -2/Section 7 | Spotted Combat Programmer 30946 | -2/Section 7 | Destroyed Combat Programmer 31023 | -2/Section 7 | Lost 12 parts (4n7u1w) 31102 | -2/Section 7 | Destroyed Combat Programmer 31121 | -2/Section 7 | Found Integrated Reactor 31121 | -2/Section 7 | Installed Integrated Reactor, increased core energy generation (+10) 31153 | -2/Section 7 | Found Spacefold Activator 31159 | -2/Section 7 | Spotted Executioner 31159 | -2/Section 7 | Spotted Executioner 31175 | -2/Section 7 | Spotted B-99 Colossus 31216 | -2/Section 7 | Core integrity fell below 50% 31235 | -2/Section 7 | Destroyed Executioner 31244 | -2/Section 7 | Destroyed Executioner 31264 | -2/Section 7 | Found Exp. Core Analyzer 31271 | -2/Section 7 | Lost 9 parts (5n4u) 31276 | -2/Section 7 | Found Prototype Processor 31276 | -2/Section 7 | Identified Exp. Targeting Computer 31282 | -2/Section 7 | Found Prototype Device 31282 | -2/Section 7 | Identified Adv. Kinecellerator 31286 | -2/Section 7 | Found Exp. Core Analyzer 31353 | -2/Section 7 | Spotted Executioner 31353 | -2/Section 7 | Spotted Executioner 31446 | -2/Section 7 | Found Core Expander 31446 | -2/Section 7 | Installed Core Expander, added new Power slot 31448 | -2/Section 7 | Found Core Expander 31448 | -2/Section 7 | Installed Core Expander, added new Propulsion slot 31492 | -2/Section 7 | Found LRC Armor 31492 | -2/Section 7 | Installed LRC Armor, increased core integrity (+250) 31536 | -2/Section 7 | Found Integrated Dissipator 31536 | -2/Section 7 | Installed Integrated Dissipator, increased core heat dissipation (+20) 31559 | -2/Section 7 | Build established: Scavenger-Gladiator 31741 | -2/Section 7 | Spotted Alpha 7 31750 | -2/Section 7 | Spotted Alpha 7 31767 | -2/Section 7 | Core integrity fell below 20% 31772 | -2/Section 7 | Destroyed by Alpha 7 with Multirail Last Messages --------------- 31763_ Dropped Adv. Remote Datajack. 31763_ Dropped Enh. Biometal Leg. 31764_ B-99 Colossus activates siege mode. 31764_ Dropped Enh. Biometal Leg. 31764_ Imp. Antigrav System destroyed. 31764_ Penetrated by Slug. 31764_ Dropped Energy Well. 31766_ Penetrated by Slug. 31766_ Slug penetrates FTL Facilitator. 31766_ Adv. Melee Analysis Suite destroyed. 31766_ Penetrated by Slug. 31766_ Lrn. Terrain Scanner destroyed. 31767_ Penetrated by Slug. 31767_ Slug penetrates FTL Facilitator. 31767_ Penetrated by Slug. 31767_ Slug penetrates FTL Facilitator. 31769_ Penetrated by Slug. Superquantum Companion releases a shadow of itself that zips off towards G-73 Enforcer. 31770_ G-73 Enforcer destroyed. 31772_ Penetrated by Slug. Map ----- +----------------------------------------------------+ | "" ""?????????? ???????? | | ?"""" " "????????? ??????? | | "" """"" ??????????? ??????? | | "?" """"?????????? ?????? | | """"" "?????????? "?????? | | " "?????????? ?????? | | " """""""""??? ""??????? | | """ " " " " """ ???????? | | "" T " " " " """"""?????? | | " " " "" ??????? | | "" """"""""""" | | "" """ "" | | """ " | | " " "" """"""""" | | ""???????" """""??????? | | """ "?"""""""" ""???????????" | | "" "?" """"""""""""" | | =% """"" | | %![! "" " | | """*!*[* " " | | """!/]!=u """ | | *| " | | " | | | | [ ! | | [![ @ ! | | """" *""" !" """"""""" | | """""" % % %###"""""%"!% """""""""""""""""""" | | """""" #?#""""*!% "" """"""""""""""""""""" | | ######## ###BB#?################################# | | ???????#% #?#BB#?????????????????????????????????? | | ???????####?# #?????????????????????????????????? | | ????????????# #?????????????????????????????????? | | ????????????# #??#################??????????????? | | ????????????# #??#"""""" """""#??????????????? | | ????????????#*!#??#"""""" """""#??????????????? | | ????????????# [#??#"""""" "#??????????????? | | ?############ %#### " """""#??????????????? | | ?# !![!% |!! """""#??????????????? | | ?# !|! |[! """""#??????????????? | | ?# ###############" """""#??????????????? | | ## #?????????????#"" "#??????????????? | | # #####?????????#" " "#??????????????? | | " """"#?????????#"""""""" "" "#??????????????? | | """#?????????######### # ####??????????????? | | """#?????????????????# ###?????????????????? | | """#?????????????????# #???????????????????? | | """#?????????????????# #???????????????????? | | """#?????????????????# #???????????????????? | | """#?###############?# #???????????????????? | +----------------------------------------------------+ Best States ------------- Heat Dissipation 134 Coolant Potential 65 Energy Generation 95 Energy Capacity 1150 Matter Stores 300 Matter Capacity 300 Sight Range 24 Robot Scan Range 15 Terrain Scan Range 24 Terrain Scan Density 10 ECM Strength 2 Jamming Range 16 Cloak Strength 3 Additional Mass Support 12 EM Shielding 3 Corruption Containment 12 Corruption Block 20 Armor Coverage 625 Resistance: TH 30 Propulsion Shielding 66 Melee Speed Boost 20 Phase Shifting 10 Evasion (%) 77 Targeting Accuracy 12 Melee Accuracy 22 Target Analysis 8 Core Analysis 12 Armor Integrity Analysis 40 Recoil Reduction 7 Kinecelleration 50 Offensive Hacking 35 Defensive Hacking 26 Trap Extractor Capacity 6 Item Schematics ----------------- Exp. Signal Interpreter | -2/Section 7 | Archive Exp. Q-thruster | -2/Section 7 | Archive Diametric Drive | -2/Section 7 | Archive Cld. Plasma Rifle | -2/Section 7 | Archive Hds. Centrium Leg | -2/Section 7 | Archive Helical Railgun | -2/Section 7 | Archive Robot Schematics ------------------ None Fabricated ------------ Mic. Antimatter Reactor | x2 | -4/Factory | Preloaded Assault Drone Bay | x1 | -2/Research Repaired ---------- Cld. Antigrav System | 38% | -2/Quarantine Cld. Antigrav System | 39% | -2/Section 7 Studied --------- None Alien Tech Used ----------------- Core Expander Integrated Dissipator Transdimensional Reconstructor Core Regenerator LC Capacitor Core Reset Matrix Subatomic Replicator Integrated Reactor Phase Redirector LRC Armor Achievements -------------- Anyone Home? Decrypted! Whoosh! Challenges ------------ None Game ------ Seed ReflectiveTitaniumReactor Manual? 0 Play Time 05:41:00 Cumulative 89.3 hours Start 2026.04.05 @ 12:40:52 End 2026.04.12 @ 00:15:56 Sessions 29 Manual Loads 0 Difficulty Rogue Special Mode None Game No. 40 Rogue 40 Adventurer 0 Explorer 0 Win Type - Total 1 Types 1/0/0/0/0/0/0/0/0/0 Lore% 58 Gallery% 58 Achievement% 53 Wizard Run 0 Options --------- Layout 0 ASCII 0 Keyboard 0 Movement Mouse Keybinds 0 Fullscreen 1 Font 24/Smallcaps Map View 183x50 Zoom Use 0% Tactical HUD 1 Map Filters NONE Filters NONE Steam 1 RUN: d2dbef75-7d3b-4969-99e3-0ecc4a1d7ad7